{"text_format":"3","workbook":"xlsx","n_sheets":1,"sheets":["CRONO FÍSICO _ PAD"],"read":"whole","date_system":"1900"}

{"sheet":"CRONO FÍSICO _ PAD","index":0,"n_rows":70,"n_cols":12,"rows_kept":70,"merged":[[0,0,0,11],[1,0,1,11],[2,0,2,11],[4,0,4,11],[5,0,5,11],[6,0,6,11],[7,0,7,11],[8,0,8,11],[9,0,9,11],[10,0,10,11],[11,0,11,11],[12,0,12,11],[13,0,13,11],[14,0,14,1],[14,2,14,11],[15,0,15,1],[15,2,15,11],[16,0,16,1],[16,2,16,11],[17,0,18,2],[17,3,18,10],[17,11,18,11],[19,1,19,2],[20,1,20,2],[21,1,21,2],[22,1,22,2],[23,1,23,2],[24,1,24,2],[25,1,25,2],[26,1,26,2],[27,1,27,2],[28,1,28,2],[29,1,29,2],[30,0,31,2],[30,3,31,3],[30,4,31,10],[32,1,32,2],[33,1,33,2],[34,1,34,2],[35,1,35,2],[36,1,36,2],[37,1,37,2],[38,1,38,2],[39,1,39,2],[40,1,40,2],[41,1,41,2],[42,1,42,2],[43,0,44,2],[43,3,44,3],[43,4,44,10],[45,1,45,2],[46,1,46,2],[47,1,47,2],[48,1,48,2],[49,1,49,2],[50,1,50,2],[51,1,51,2],[52,1,52,2],[53,1,53,2],[54,1,54,2],[55,1,55,2],[56,0,57,1],[56,2,57,10],[58,1,58,2],[59,1,59,2],[60,1,60,2],[61,1,61,2],[62,1,62,2],[63,1,63,2],[64,1,64,2],[65,1,65,2],[66,1,66,2],[67,1,67,2],[68,1,68,2],[69,0,69,10]]}
[]
["EDITAL PADRONIZADO \n CHAMAMENTO PÚBLICO (NÚMERO)/2024 (INCLUIR NUMERAÇÃO PRÓPRIA) \nREDE ESTADUAL/DISTRITAL/MUNICIPAL/ \nDE PONTOS DE CULTURA DE (INSERIR UNIDADE DA FEDERAÇÃO - UF) \n \nCULTURA VIVA DO TAMANHO DO BRASIL! \n FOMENTO A PROJETOS CONTINUADOS DE PONTOS DE CULTURA"]
["ANEXO 05 - Plano de Aplicação de Recursos\nEste Plano de Aplicação de Recursos deve ter consonância com o ANEXO 04 - Planejamento do Projeto\n(Campos preenchimento obrigatório: destacados de amarelo)"]
[]
["Orientações:"]
["a) Valor total do projeto deve estar exatamente igual com o disponível no Edital (e na categoria inscrita)."]
["b) Preferencialmente, indicar o parâmetro de preço oficial utilizado com a referência específica do valor de cada item de despesa, conforme uma das referências abaixo:\n• Tabela SalicNet – Preços da Cultura:\nLink: http://sistemas.cultura.gov.br/comparar/salicnet/salicnet.php\nAba para consulta: Projetos – Itens Orçamentários – Item Orçamentário por Produto – ENTRE O VALOR MÍNIMO E O VALOR MÉDIO INDICADO.\nOU\n• Painel de Preços do Governo Federal:\nLink: http://paineldeprecos.planejamento.gov.br/\nOU\n• Ata de Registro de Preços ou normativos publicados pelo estado ou municípios onde será realizada a despesa do projeto."]
["c) Para pagamento de custos indiretos, tributos e/ou contribuições: caso a instituição cultural opte por inserir esses custeios no Plano de Trabalho, deve-se enviar Memória de Cálculo proporcional ao custeio para o projeto (exemplos: Direitos Autorais – SBAT e ECAD, IR Retido na Fonte no caso de premiações para Pessoa Física, INSS Patronal, dentre outros)."]
["d) Inserir as datas de início e término de cada Meta e Etapa, considerando 12 meses de vigência, contando a pré-produção, a produção e a pós-produção."]
["e) O período da prestação de contas (90 dias) inicia-se após o término da vigência do Termo de Compromisso Cultural."]
["f) Preencha os campos que estão em branco."]
["g) Metas: as Metas são padronizadas pelo Edital de Seleção, de acordo com o Planejamento do Projeto (ANEXO 5). A entidade cultural poderá prever mais Metas, incluindo na planilha quantas linhas forem necessárias para o cumprimento do objeto do Termo de Compromisso Cultural."]
["h) Etapas: as Etapas devem prever todos os itens de despesa necessários para cumprir com os objetivos de cada Meta padronizada, de acordo com o Planejamento do Projeto (ANEXO 5). A entidade cultural poderá prever mais Etapas, incluindo na planilha quantas linhas forem necessárias."]
[]
["ENTIDADE CULTURAL:"]
["CNPJ:"]
["TÍTULO DO PROJETO:"]
["Especificação / Descrição da Meta:",null,null,"META 1 - FORMAÇÃO E EDUCAÇÃO CULTURAL",{"$nulls":7},"VALOR TOTAL DAS METAS"]
[]
["ETAPAS","DISCRIMINAÇÃO DOS SERVIÇOS E DAS CONTRATAÇÕES",null,"JUSTIFICATIVA","UNID. MEDIDA","QUANT.","VALOR UNITÁRIO","VALOR TOTAL","OBSERVAÇÃO:\nParâmetro de Preço utilizado e memória de cálculo","Data de início","Data de término",{"$f":"SUM(H21:H30)","v":{"v":0,"d":"R$ 0.00"}}]
["1.1.","Inserir o item de despesa que será custeado com os recursos do TCC para atingir os objetivos da Meta",{"$nulls":5},{"$f":"G21*F21","v":{"v":0,"d":"R$ 0.00"}}]
["1.2.","Inserir o item de despesa que será custeado com os recursos do TCC para atingir os objetivos da Meta",{"$nulls":5},{"v":0,"d":"R$ 0.00"}]
["1.3.","Inserir o item de despesa que será custeado com os recursos do TCC para atingir os objetivos da Meta",{"$nulls":5},{"v":0,"d":"R$ 0.00"}]
["1.4.","Inserir o item de despesa que será custeado com os recursos do TCC para atingir os objetivos da Meta",{"$nulls":5},{"v":0,"d":"R$ 0.00"}]
["1.5.","Inserir o item de despesa que será custeado com os recursos do TCC para atingir os objetivos da Meta",{"$nulls":5},{"v":0,"d":"R$ 0.00"}]
["1.6.","Inserir o item de despesa que será custeado com os recursos do TCC para atingir os objetivos da Meta",{"$nulls":5},{"v":0,"d":"R$ 0.00"}]
["1.7.","Inserir o item de despesa que será custeado com os recursos do TCC para atingir os objetivos da Meta",{"$nulls":5},{"v":0,"d":"R$ 0.00"}]
["1.8.","Inserir o item de despesa que será custeado com os recursos do TCC para atingir os objetivos da Meta",{"$nulls":5},{"v":0,"d":"R$ 0.00"}]
["1.9.","Inserir o item de despesa que será custeado com os recursos do TCC para atingir os objetivos da Meta",{"$nulls":5},{"v":0,"d":"R$ 0.00"}]
["1.10.","Inserir o item de despesa que será custeado com os recursos do TCC para atingir os objetivos da Meta",{"$nulls":5},{"v":0,"d":"R$ 0.00"}]
["Especificação / Descrição da Meta:",{"$nulls":3},"META 2 - MOSTRA ARTÍSTICA/CULTURAL"]
[]
["ETAPAS","DISCRIMINAÇÃO DOS SERVIÇOS E DAS CONTRATAÇÕES",null,"JUSTIFICATIVA","UNID. MEDIDA","QUANT.","VALOR UNITÁRIO","VALOR TOTAL","OBSERVAÇÃO:\nParâmetro de Preço utilizado e memória de cálculo","Data de início","Data de término",{"$f":"SUM(H34:H43)","v":{"v":0,"d":"R$ 0.00"}}]
["2.1.","Inserir o item de despesa que será custeado com os recursos do TCC para atingir os objetivos da Meta",{"$nulls":5},{"$f":"G34*F34","v":{"v":0,"d":"R$ 0.00"}}]
["2.2.","Inserir o item de despesa que será custeado com os recursos do TCC para atingir os objetivos da Meta",{"$nulls":5},{"v":0,"d":"R$ 0.00"}]
["2.2.","Inserir o item de despesa que será custeado com os recursos do TCC para atingir os objetivos da Meta",{"$nulls":5},{"v":0,"d":"R$ 0.00"}]
["2.4.","Inserir o item de despesa que será custeado com os recursos do TCC para atingir os objetivos da Meta",{"$nulls":5},{"v":0,"d":"R$ 0.00"}]
["2.5.","Inserir o item de despesa que será custeado com os recursos do TCC para atingir os objetivos da Meta",{"$nulls":5},{"v":0,"d":"R$ 0.00"}]
["2.6.","Inserir o item de despesa que será custeado com os recursos do TCC para atingir os objetivos da Meta",{"$nulls":5},{"v":0,"d":"R$ 0.00"}]
["2.7.","Inserir o item de despesa que será custeado com os recursos do TCC para atingir os objetivos da Meta",{"$nulls":5},{"v":0,"d":"R$ 0.00"}]
["2.8.","Inserir o item de despesa que será custeado com os recursos do TCC para atingir os objetivos da Meta",{"$nulls":5},{"v":0,"d":"R$ 0.00"}]
["2.9.","Inserir o item de despesa que será custeado com os recursos do TCC para atingir os objetivos da Meta",{"$nulls":5},{"v":0,"d":"R$ 0.00"}]
["2.10.","Inserir o item de despesa que será custeado com os recursos do TCC para atingir os objetivos da Meta",{"$nulls":5},{"v":0,"d":"R$ 0.00"}]
["Especificação / Descrição da Meta:",{"$nulls":3},"META 3 - REGISTRO E DIVULGAÇÃO"]
[]
["ETAPAS","DISCRIMINAÇÃO DOS SERVIÇOS E DAS CONTRATAÇÕES",null,"JUSTIFICATIVA","UNID. MEDIDA","QUANT.","VALOR UNITÁRIO","VALOR TOTAL","OBSERVAÇÃO:\nParâmetro de Preço utilizado e memória de cálculo","Data de início","Data de término",{"$f":"SUM(H47:H56)","v":{"v":0,"d":"R$ 0.00"}}]
["3.1.","Inserir o item de despesa que será custeado com os recursos do TCC para atingir os objetivos da Meta",{"$nulls":5},{"$f":"G47*F47","v":{"v":0,"d":"R$ 0.00"}}]
["3.2.","Inserir o item de despesa que será custeado com os recursos do TCC para atingir os objetivos da Meta",{"$nulls":5},{"v":0,"d":"R$ 0.00"}]
["3.3.","Inserir o item de despesa que será custeado com os recursos do TCC para atingir os objetivos da Meta",{"$nulls":5},{"v":0,"d":"R$ 0.00"}]
["3.4.","Inserir o item de despesa que será custeado com os recursos do TCC para atingir os objetivos da Meta",{"$nulls":5},{"v":0,"d":"R$ 0.00"}]
["3.5.","Inserir o item de despesa que será custeado com os recursos do TCC para atingir os objetivos da Meta",{"$nulls":5},{"v":0,"d":"R$ 0.00"}]
["3.6.","Inserir o item de despesa que será custeado com os recursos do TCC para atingir os objetivos da Meta",{"$nulls":5},{"v":0,"d":"R$ 0.00"}]
["3.7.","Inserir o item de despesa que será custeado com os recursos do TCC para atingir os objetivos da Meta",{"$nulls":5},{"v":0,"d":"R$ 0.00"}]
["3.8.","Inserir o item de despesa que será custeado com os recursos do TCC para atingir os objetivos da Meta",{"$nulls":5},{"v":0,"d":"R$ 0.00"}]
["3.9.","Inserir o item de despesa que será custeado com os recursos do TCC para atingir os objetivos da Meta",{"$nulls":5},{"v":0,"d":"R$ 0.00"}]
["3.10.","Inserir o item de despesa que será custeado com os recursos do TCC para atingir os objetivos da Meta",{"$nulls":5},{"v":0,"d":"R$ 0.00"}]
["Especificação / Descrição da Meta:",null,"META XX - XXXXX"]
[]
["ETAPA","DISCRIMINAÇÃO DOS SERVIÇOS E DAS CONTRATAÇÕES",null,"JUSTIFICATIVA","UNID. MEDIDA","QUANT.","VALOR UNITÁRIO","VALOR TOTAL","OBSERVAÇÃO:\nParâmetro de Preço utilizado e memória de cálculo","Data de início","Data de término",{"$f":"SUM(H60:H69)","v":{"v":0,"d":"R$ 0.00"}}]
["X.1.","Inserir o item de despesa que será custeado com os recursos do TCC para atingir os objetivos da Meta",{"$nulls":5},{"$f":"G60*F60","v":{"v":0,"d":"R$ 0.00"}}]
["X.2.","Inserir o item de despesa que será custeado com os recursos do TCC para atingir os objetivos da Meta",{"$nulls":5},{"v":0,"d":"R$ 0.00"}]
["X.3.","Inserir o item de despesa que será custeado com os recursos do TCC para atingir os objetivos da Meta",{"$nulls":5},{"v":0,"d":"R$ 0.00"}]
["X.4.","Inserir o item de despesa que será custeado com os recursos do TCC para atingir os objetivos da Meta",{"$nulls":5},{"v":0,"d":"R$ 0.00"}]
["X.5.","Inserir o item de despesa que será custeado com os recursos do TCC para atingir os objetivos da Meta",{"$nulls":5},{"v":0,"d":"R$ 0.00"}]
["X.6.","Inserir o item de despesa que será custeado com os recursos do TCC para atingir os objetivos da Meta",{"$nulls":5},{"v":0,"d":"R$ 0.00"}]
["X.7.","Inserir o item de despesa que será custeado com os recursos do TCC para atingir os objetivos da Meta",{"$nulls":5},{"v":0,"d":"R$ 0.00"}]
["X.8.","Inserir o item de despesa que será custeado com os recursos do TCC para atingir os objetivos da Meta",{"$nulls":5},{"v":0,"d":"R$ 0.00"}]
["X.9.","Inserir o item de despesa que será custeado com os recursos do TCC para atingir os objetivos da Meta",{"$nulls":5},{"v":0,"d":"R$ 0.00"}]
["X.10.","Inserir o item de despesa que será custeado com os recursos do TCC para atingir os objetivos da Meta",{"$nulls":5},{"v":0,"d":"R$ 0.00"}]
["VALOR TOTAL DO PROJETO",{"$nulls":10},{"$f":"SUM(L20:L62)","v":{"v":0,"d":"R$ 0.00"}}]